Cogmind - Beta 16.1 @@@ ROGUE MODE // 2026.03.12 @ 09:44:55 Player: Tottery Result: Destroyed by L-31 Rogue with Katana Performance ------------- Evolutions (1) 500 Regions Visited (2) 400 Robots Destroyed (44) 220 Value Destroyed (1211) 1211 Prototype IDs (0) 0 Alien Tech Used (0) 0 Bonus (43) 43 TOTAL SCORE: 2374 Bonus ------- High Alert Combat Kills 43 Cogmind --------- Core Integrity 0/400 Matter 210/300 Energy 100/100 System Corruption 0% Temperature Cool (0) Movement Core (150) Ox2 Location -9/Materials Parts ------- > --- POWER (1) -------- (None) > --- PROPULSION (2) --- (None) > --- UTILITY (4) ------ Small Storage Unit > --- WEAPON (2) ------- Particle Gun > --- INVENTORY (8) ---- Light Nuclear Core Aluminum Leg Transport Network Coupler Hacking Suite Datajack Peak State ------------ > --- POWER ------------ Nuclear Core > --- PROPULSION ------- Aluminum Leg Aluminum Leg > --- UTILITY ---------- Heat Sink Small Storage Unit Improved Utility Shielding Tractor Beam > --- WEAPON ----------- Assault Cannon Assault Cannon > --- INVENTORY -------- Nuclear Core Aluminum Leg Aluminum Leg Signal Interpreter Hacking Suite Assault Cannon Assault Cannon Datajack [Rating: 18] Favorites ----------- Power Nuclear Core Engine Ion Engine Power Core Nuclear Core Propulsion Aluminum Leg Leg Aluminum Leg Utility Small Storage Unit Device Heat Sink Storage Small Storage Unit Protection Improved Utility Shielding Weapon Assault Cannon Energy Gun Medium Laser Ballistic Gun Assault Rifle Ballistic Cannon Assault Cannon Launcher Grenade Launcher Special Melee Weapon Datajack Build | -11 -10 -9 ------- Run | Yrd Mat Mat Slots Evolved 2 | . . 2 Power . | . . . Propulsion . | . . . Utility 2 | . . 2 Weapon . | . . . Parts Attached 32 | 5 10 17 Power 5 | 1 2 2 Engine 3 | 1 2 . Core 2 | . . 2 Reactor . | . . . Propulsion 10 | 1 4 5 Treads . | . . . Leg 10 | 1 4 5 Wheel . | . . . Hover . | . . . Flight . | . . . Utility 5 | 1 2 2 Device 2 | . 1 1 Storage 2 | 1 1 . Processor . | . . . Hackware . | . . . Protection 1 | . . 1 Artifact . | . . . Weapon 12 | 2 2 8 Energy Gun 4 | 1 . 3 Energy Cannon . | . . . Ballistic Gun 2 | 1 1 . Ballistic Cannon 4 | . . 4 Launcher 1 | . . 1 Special Weapon . | . . . Impact Weapon . | . . . Slashing Weapon . | . . . Piercing Weapon . | . . . Special Melee Weapon 1 | . 1 . Unidentified Prototypes . | . . . Parts Lost 12 | . 1 11 Power 2 | . . 2 Propulsion 4 | . 1 3 Utility 3 | . . 3 Weapon 3 | . . 3 Highest Loss Streak 9 | . 1 9 To Critical Strikes . | . . . Average Backups 7 | 1 7 7 Power . | . 1 . Propulsion 1 | . 1 1 Utility 2 | . 3 2 Weapon 1 | . . 1 Tool/Special . | . . . Unused Backups 8 | . 2 6 Power 2 | . 1 1 Propulsion 1 | . . 1 Utility 5 | . 1 4 Weapon . | . . . Tool/Special . | . . . Average Slot Usage (%) 92 | . 89 94 Engine 5 | . 14 1 Core 6 | . . 9 Leg 23 | . 28 21 Device 15 | . 4 20 Storage 11 | . 14 11 Protection 5 | . . 8 Energy Gun 2 | . 3 1 Ballistic Gun 6 | . 20 . Ballistic Cannon 11 | . . 16 Special Melee Weapon 2 | . 4 2 Peak Build Rating 18 | 5 8 18 Average Rating 12 | 4 7 15 On Entrance 4 | . 5 8 Avg Prop Armor Cover (%) . | . . . Naked Turns . | . . . Heaviest Build 26 | 14 14 26 Greatest Support 20 | 10 20 20 Greatest Overweight (x) 4 | 1 . 4 Average Overweight (x) . | . . . Largest Inventory Capacity 8 | 8 8 8 Average Capacity 7 | 7 8 8 Most Carried 8 | 3 8 8 Average Carried 7 | 1 7 7 Final Capacity 8 | 8 8 8 Final Carried 8 | 3 8 5 Class Distribution -------------------- 100% | Mutant Dominant Class ---------------- Mutant | -10/Materials Mutant | -9/Materials Resources | -11 -10 -9 ----------- Run | Yrd Mat Mat Matter Collected 1392 | 218 286 888 Remotely 885 | . . 885 Salvage Created 1061 | . 335 726 Parts 83 | . 26 57 Haulers Intercepted 1 | . . 1 Recyclers Shooed 1 | . . 1 Parts Field Recycled . | . . . Retrieved Matter . | . . . Parts Self-Destructed . | . . . Prevented . | . . . Parts Restored . | . . . Kills | -11 -10 -9 ------- Run | Yrd Mat Mat Combat Hostiles Destroyed 38 | . 11 27 Guns 11 | . 11 . Cannons 27 | . . 27 Classes Destroyed 7 | . 3 4 Builder 2 | . . 2 Hauler 1 | . . 1 Operator 1 | . 1 . Watcher 2 | . . 2 Swarmer 11 | . 5 6 Grunt 20 | . 6 14 Sentry 7 | . . 7 Best Kill Streak 9 | . 5 9 Combat Bots Only 7 | . 5 7 Max Kills in Single Turn 2 | . 2 2 Gunslinging 1 | . 1 . Exploded . | . . . Melee . | . . . Uniques/NPCs Destroyed . | . . . Combat | -11 -10 -9 -------- Run | Yrd Mat Mat Hostile Shots Fired 233 | . 53 180 Missed 58 | . 12 46 Hits 175 | . 41 134 Melee 8 | . . 8 Projectile 167 | . 41 126 Critical Strikes 3 | . . 3 Damage Taken 2290 | . 399 1891 Core 477 | . 55 422 Absorbed by Shields . | . . . Redirected to Shielding 102 | . . 102 Core Remaining (%) 89 | 100 78 . Volleys Fired 136 | . 39 97 Largest 2 | . 2 2 Hottest 112 | . 70 112 Shots Fired 238 | . 71 167 Gun 77 | . 71 6 Cannon 161 | . . 161 Launcher . | . . . Special . | . . . Kinetic 224 | . 63 161 Thermal 14 | . 8 6 Explosive . | . . . Electromagnetic . | . . . Robot Hit Streak 17 | . 17 10 Robot Miss Streak 5 | . 2 5 Penetration Max . | . . . Secondary Targets 3 | . 3 . Max Gunslinging Chain 1 | . 1 . Shots Hit Robots 153 | . 53 100 Core Hits 53 | . 19 34 Critical Kills . | . . . Critical Parts Destroyed . | . . . Critical Strikes 3 | . 1 2 Burn 1 | . 1 . Blast 2 | . . 2 Melee Attacks 9 | . 5 4 Impact . | . . . Slashing . | . . . Piercing . | . . . Sneak Attacks 9 | . 5 4 Combat Hostiles . | . . . Follow-up Attacks . | . . . Damage Inflicted 3013 | . 607 2406 Guns 700 | . 607 93 Cannons 2303 | . . 2303 Explosions . | . . . Melee . | . . . Ramming 10 | . . 10 Kinetic 2835 | . 532 2303 Thermal 168 | . 75 93 Explosive . | . . . Electromagnetic . | . . . Impact . | . . . Slashing . | . . . Piercing . | . . . Highest Corruption . | . . . Average Corruption . | . . . Corruption Purged . | . . . Corruption Blocked . | . . . Overload Shots . | . . . Overflow Damage 12 | . . 12 Projectiles 12 | . . 12 Explosions . | . . . Melee . | . . . Knockbacks 17 | . . 17 Impact . | . . . Kinetic 15 | . . 15 Secondary 2 | . . 2 Self-Inflicted Damage . | . . . Shots . | . . . Rammed . | . . . Targets Rammed 1 | . . 1 Kicked 1 | . . 1 Crushed . | . . . Highest Temperature 117 | . 108 117 Average Temperature 37 | . 48 32 Received Heat Transfer 822 | . 162 660 Siege Activations . | . . . Martial Activations . | . . . Shielding Activations . | . . . Robots Disrupted . | . . . Combat Hostiles . | . . . Robots Corrupted . | . . . Combat Hostiles . | . . . Parts Fried . | . . . Impact Corruptions . | . . . Robots Melted . | . . . Combat Hostiles . | . . . Parts Melted . | . . . Heat Transferred 518 | . 296 222 Parts Sabotaged . | . . . Parts Stolen . | . . . Parts Stripped . | . . . Power Chain Reactions . | . . . Alert | -11 -10 -9 ------- Run | Yrd Mat Mat Maximum Alert Level 2 | . . 2 Low Security (%) 74 | 100 100 60 Level 1 20 | . . 33 Level 2 4 | . . 6 Level 3 . | . . . Level 4 . | . . . Level 5 . | . . . High Security . | . . . Max Security . | . . . Peak Influence 487 | . 185 487 Initial 47 | . . 47 Average 145 | . 96 182 Influence Increases 1138 | . 310 828 Destroy 0b10 Robot/C 760 | . 220 540 Destroy 0b10 Robot/NC 30 | . 5 25 Destroy Leader 186 | . 50 136 Successful Hack 5 | . 5 . Disable Machine 30 | . . 30 Destroy Structure 37 | . . 37 Lose Combat Pursuer 90 | . 30 60 Influence Decreases 719 | . 197 522 Entered New Map 66 | . . 66 Time Decay 533 | . 187 346 Lost Part 120 | . 10 110 Squads Dispatched 7 | . 3 4 Investigation 2 | . 1 1 Extermination . | . . . Reinforcement 5 | . 2 3 Assault . | . . . Garrison . | . . . Intercept . | . . . Searches Triggered . | . . . Construction Impeded . | . . . Haulers Reinforced . | . . . Active Scanning Responses . | . . . Cargo Convoy Interrupts . | . . . Stealth | -11 -10 -9 --------- Run | Yrd Mat Mat Distress Signals 5 | . . 5 Communications Jammed . | . . . Distress Signals . | . . . Times Spotted 62 | . 18 44 Peak Tracking Total 7 | . 5 7 Tactical Retreats 5 | . 1 4 Traps | -11 -10 -9 ------- Run | Yrd Mat Mat Traps Triggered 2 | . 1 1 Indirectly . | . . . Trap Hack Attempts . | . . . Triggered . | . . . Disarmed . | . . . Reprogrammed . | . . . Reused . | . . . Traps Extracted . | . . . Installed . | . . . Triggered . | . . . Machines | -11 -10 -9 ---------- Run | Yrd Mat Mat Machines Disabled 2 | . . 2 Max in Single Turn 1 | . . 1 Machines Repaired . | . . . Machines Dismantled . | . . . Machines Sabotaged . | . . . Overloaded Fab Kills . | . . . Hacking | -11 -10 -9 --------- Run | Yrd Mat Mat Machines Accessed 4 | . 2 2 Terminals 4 | . 2 2 Fabricators . | . . . Repair Stations . | . . . Recycling Units . | . . . Scanalyzers . | . . . Garrison Access . | . . . Total Hacks 9 | . 4 5 Successful 6 | . 2 4 Failed 3 | . 2 1 Catastrophic 1 | . 1 . Database Lockouts . | . . . Manual . | . . . Terminals 9 | . 4 5 Fabricators . | . . . Repair Stations . | . . . Recycling Units . | . . . Scanalyzers . | . . . Garrison Access . | . . . Terminal Hacks 6 | . 2 4 Record 2 | . . 2 Terminal Index 1 | . 1 . Alert Level 2 | . 1 1 Locate Traps 1 | . . 1 Fabricator Hacks . | . . . Repair Station Hacks . | . . . Recycling Unit Hacks . | . . . Scanalyzer . | . . . Garrison Access Hacks . | . . . Unauthorized Hacks . | . . . Terminals . | . . . Fabricators . | . . . Repair Stations . | . . . Recycling Units . | . . . Scanalyzers . | . . . Garrison Access . | . . . Data Cores Recovered . | . . . Used . | . . . Hacking Detections 2 | . 1 1 Full Trace Events . | . . . Feedback Events . | . . . Feedback Blocked . | . . . Robot Schematics Acquired . | . . . Robots Built . | . . . Authchips . | . . . Time . | . . . Total Robot Build Rating . | . . . Part Schematics Acquired . | . . . Parts Built . | . . . Authchips . | . . . Time . | . . . Total Part Build Rating . | . . . Part Studies Acquired . | . . . Parts Repaired . | . . . Time . | . . . Parts Recycled . | . . . Recycled Matter . | . . . Retrieved Matter . | . . . Retrieved Components . | . . . Parts Scanalyzed . | . . . Part Schematics Acquired . | . . . Parts Damaged . | . . . Bothacking | -11 -10 -9 ------------ Run | Yrd Mat Mat Used RIF Installer . | . . . Robots Hacked 1 | . 1 . Non-combat 1 | . 1 . Combat . | . . . Robot Hacks Applied 2 | . 2 . parse_system 1 | . 1 . no_distress 1 | . 1 . Relay Couplers Released . | . . . Fabnet Peak Effective % . | . . . Robots Rewired . | . . . Allies Hacked . | . . . Hacks Repelled . | . . . Allies | -11 -10 -9 -------- Run | Yrd Mat Mat Total Allies . | . . . Largest Group . | . . . Highest-Rated Group . | . . . Highest-Rated Ally . | . . . Total Orders . | . . . Ally Attacks . | . . . Total Damage . | . . . Kills . | . . . Allies Corrupted . | . . . Allies Melted . | . . . Intel | -11 -10 -9 ------- Run | Yrd Mat Mat Active Infowar (turns) . | . . . Robot Analysis Total . | . . . Derelict Logs Recovered . | . . . Drone Launches . | . . . Drone Recoveries . | . . . Exploration | -11 -10 -9 ------------- Run | Yrd Mat Mat Turns Passed 1527 | 89 475 963 Spaces Moved 632 | 46 244 342 Core 9 | 2 . 7 Treads . | . . . Legs 623 | 44 244 335 Wheels . | . . . Hover . | . . . Flight . | . . . Fastest Speed 50 | 50 120 120 Average Speed 154 | 174 120 176 Slowest Speed 260 | 190 120 260 Overloaded Moves . | . . . Propulsion Burnouts . | . . . Robots Hopped . | . . . Potential Cave-ins . | . . . Cave-ins Triggered 1 | . . 1 Exploration Rate (%) 35 | 4 50 51 Regions Visited 2 Branch Regions . Pre-discovered Areas . | . . . Known Exits Taken . | . . . Unknown Exits Taken 2 | 1 1 . Scrap Searched . | . . . Spaces Dug 3 | . . 3 Terrain Destroyed 35 | . . 35 Melee . | . . . Projectile 35 | . . 35 AOE . | . . . Terrain Rammed . | . . . Walls Destroyed . | . . . Machines Disabled . | . . . Actions | -11 -10 -9 --------- Run | Yrd Mat Mat Total 942 | 53 356 533 Wait 89 | . 38 51 Move 630 | 45 243 342 Hop . | . . . Pick Up 22 | 3 12 7 Fast Attach 8 | 5 . 3 Attach 8 | . 3 5 Detach . | . . . Swap 19 | . 7 12 Drop 20 | . 9 11 Fire 136 | . 39 97 Melee 9 | . 5 4 Ram . | . . . Kick 1 | . . 1 Crush . | . . . Escape Stasis . | . . . Rewire . | . . . Trap . | . . . Miscellaneous . | . . . Route ------- -11/Scrapyard -10/Materials -9/Materials (discovered 1 exit: [*Min]) History --------- Turn | Location | Event 33 | -11/Scrapyard | Discovered new exit (range 15) 90 | -11/Scrapyard | Entered Materials 300 | -10/Materials | Build established: Mutant 559 | -10/Materials | Discovered new exit (range 6) 565 | -10/Materials | Entered another Materials area 565 | -9/Materials | Evolved 2 slots: Utility x2 1097 | -9/Materials | Discovered new exit (range 12) 1210 | -9/Materials | Destroyed 7 combat bots 1413 | -9/Materials | Core integrity fell below 50% 1509 | -9/Materials | Crushed by falling debris 1509 | -9/Materials | Core integrity fell below 20% 1528 | -9/Materials | Destroyed by L-31 Rogue with Katana Last Messages --------------- 01484_ Acquired 2 matter. 01488_ Acquired 5 matter. 01489_ Acquired Lgt. Nuclear Core. 01490_ Assault Cannon destroyed. 01492_ Acquired 4 matter. 01493_ L-31 Rogue knocked back. 01494_ Acquired 5 matter. 01496_ Assault Cannon severed. 01498_ Acquired 2 matter. 01498_ Acquired 10 matter. 01500_ Acquired Particle Gun. 01506_ Aluminum Leg destroyed. 01506_ R-06 Scavenger collects Sml. Laser. 01506_ Aluminum Leg destroyed. 01508_ Tractor Beam destroyed. 01509_ The unstable cave ceiling collapses. 01509_ Crushed by falling debris. 01509_ Heat Sink crushed. 01523_ Acquired 3 matter. 01528_ Nuclear Core destroyed. Map ----- +----------------------------------------------------+ | ????????????????????????????????????????????????|" | | ?????????????????????????????????????????????????? | | ???????????????????????????????? ??????????????? | | ??????????????????????????????? ??????????????? | | ???????????????????????????????# ??????????????? | | ???????????????????????????????# ??????????????? | | ???????????????????????????????# #?????????????? | | ???????????????????????????????# #?????????????? | | ???????????????????????????????# #?????????????? | | ???????????????????????????????# #?????????????? | | ???????????????????????????????# #?????????????? | | ???????????????????????????????# #?????????????? | | ???????????????????????????????# #?#####???????? | | ???????????????????????????????# "? ! ???????? | | ???????????????????????????????# #? ???????? | | ???????????????????????????????# # """ "???????? | | ???????????????????????????????# # """ ""??????? | | ???????????????????????????????# ![+ """ ""??????? | | ???????????????????????????????# = """ """?????? | | ???????????????????????????????##"*# """ """?????? | | ????????????????????????????????## # ??????? | | ?????????????????????????????????#*!########?????? | | ????????????????????????????????##]!############## | | ????????????????????# ???????####"=[ | | ???????????????????## ######;;;# ^ | | ???????????????????# @lg g =* m ^ | | ???????????? #####;;*#"## ########## | | ?????????? % ???# "] # ########## | | ??????????? ????##" [# #! | | ??????????? ###+### ?????##= # # | | ???????????????????###+???????# # # | | ??????????????????????????????# # # """ """ | | ??????????????????????????????####"## # """ """ | | ?????????????????????????????????# # """ """ | | ?????????????????????????????????# # | | ?????????????????????????????????# # | | ?????????????????????????????????# ########## | | ?????????????????????????????????# | | ?????????????????????????????????# | | ?????????????????????????????????# ![ | | ?????????????????????????????????#####+########+## | | ???????????????????????????????????? %% ????# | | ?????????????????????????????????? ]* ??# | | ???????????????????????????????? ]! # | | ??????????????????????????????# ] # | | ??????????????????????????????## # | | ???????????????????????????????# # | | ???????????????????????????????################### | | | | | +----------------------------------------------------+ Best States ------------- Heat Dissipation 38 Energy Generation 14 Energy Capacity 250 Matter Stores 300 Matter Capacity 300 Sight Range 16 Terrain Scan Density 10 Utility Shielding 66 Evasion (%) 55 Item Schematics ----------------- None Robot Schematics ------------------ None Fabricated ------------ Nothing Repaired ---------- Nothing Studied --------- None Alien Tech Used ----------------- None Achievements -------------- Bumper Bots For Emergencies Only Junior Dev There's More Where That Came From Challenges ------------ None Game ------ Seed DeflectorMyomerEdition Manual? 0 Play Time 00:28:39 Cumulative 32.3 hours Start 2026.03.11 @ 23:18:06 End 2026.03.12 @ 09:44:55 Sessions 1 Manual Loads 0 Difficulty Rogue Special Mode None Game No. 36 Rogue 36 Adventurer 0 Explorer 0 Win Type - Total 0 Types 0/0/0/0/0/0/0/0/0/0 Lore% 10 Gallery% 21 Achievement% 12 Wizard Run 0 Options --------- Layout 1 ASCII 0 Keyboard 1 Movement Arrows Keybinds 0 Fullscreen 1 Font 32/SmallcapsGlow Map View 50x35 Zoom Use 0% Tactical HUD 1 Map Filters NONE Filters NONE Steam 1 RUN: 7c5e5f71-f264-46bd-8866-7ac6e990dc8c